[Event "Titled Tuesday Blitz January 17 Early 2023"]
[White "Better_Chess_Faster"]
[Black "Degtiarev, Evgeny"]
[BlackFideId "4149610"]
[WhiteElo "2030"]
[BlackElo "2385"]
[Result "0-1"]
[Round "08"]
[TimeControl "180+2"]
[Date "2023.01.17"]
[WhiteClock "0:00:17"]
[BlackClock "0:00:10"]

1. d4 {[%clk 0:03:00]}  d5 {[%clk 0:02:59]} 2. c4 {[%clk 0:03:00]}  c6 {[%clk 0:03:00]} 3. Nf3 {[%clk 0:03:00]}  Nf6 {[%clk 0:02:59]} 4. e3 {[%clk 0:02:59]}  a6 {[%clk 0:03:00]} 5. Nbd2 {[%clk 0:02:58]}  b5 {[%clk 0:02:32]} 6. b3 {[%clk 0:02:56]}  Bg4 {[%clk 0:02:29]} 7. h3 {[%clk 0:02:55]}  Bxf3 {[%clk 0:02:28]} 8. Nxf3 {[%clk 0:02:54]}  e6 {[%clk 0:02:27]} 9. c5 {[%clk 0:02:51]}  a5 {[%clk 0:02:19]} 10. Ne5 {[%clk 0:02:49]}  Nfd7 {[%clk 0:02:18]} 11. f4 {[%clk 0:02:49]}  g6 {[%clk 0:02:15]} 12. g4 {[%clk 0:02:46]}  f6 {[%clk 0:02:15]} 13. Nd3 {[%clk 0:02:45]}  Qe7 {[%clk 0:02:07]} 14. a3 {[%clk 0:02:42]}  e5 {[%clk 0:02:03]} 15. Qe2 {[%clk 0:02:36]}  e4 {[%clk 0:01:53]} 16. Nf2 {[%clk 0:02:29]}  h5 {[%clk 0:01:49]} 17. Bg2 {[%clk 0:02:20]}  hxg4 {[%clk 0:01:47]} 18. hxg4 {[%clk 0:02:19]}  Rxh1+ {[%clk 0:01:47]} 19. Bxh1 {[%clk 0:02:14]}  a4 {[%clk 0:01:42]} 20. b4 {[%clk 0:02:12]}  Qh7 {[%clk 0:01:37]} 21. Qf1 {[%clk 0:02:11]}  Bg7 {[%clk 0:01:20]} 22. Qh3 {[%clk 0:02:10]}  Qg8 {[%clk 0:01:19]} 23. Bd2 {[%clk 0:02:09]}  Nf8 {[%clk 0:01:19]} 24. O-O-O {[%clk 0:01:59]}  Ra7 {[%clk 0:01:17]} 25. f5 {[%clk 0:01:53]}  g5 {[%clk 0:00:59]} 26. Bg2 {[%clk 0:01:51]}  Re7 {[%clk 0:00:49]} 27. Nh1 {[%clk 0:01:49]}  Bh8 {[%clk 0:00:37]} 28. Be1 {[%clk 0:01:49]}  Rh7 {[%clk 0:00:38]} 29. Qg3 {[%clk 0:01:47]}  Nfd7 {[%clk 0:00:37]} 30. Qd6 {[%clk 0:01:43]}  Bg7 {[%clk 0:00:35]} 31. Bg3 {[%clk 0:01:43]}  Bf8 {[%clk 0:00:35]} 32. Qc7 {[%clk 0:01:42]}  Kf7 {[%clk 0:00:16]} 33. Nf2 {[%clk 0:01:28]}  Be7 {[%clk 0:00:16]} 34. Bd6 {[%clk 0:01:17]}  Qd8 {[%clk 0:00:15]} 35. Qxd8 {[%clk 0:01:07]}  Bxd8 {[%clk 0:00:16]} 36. Nh1 {[%clk 0:01:04]}  Na6 {[%clk 0:00:16]} 37. Ng3 {[%clk 0:01:02]}  Rh4 {[%clk 0:00:15]} 38. Rh1 {[%clk 0:00:56]}  Bc7 {[%clk 0:00:11]} 39. Rxh4 {[%clk 0:00:50]}  gxh4 {[%clk 0:00:12]} 40. Bxc7 {[%clk 0:00:50]}  Nxc7 {[%clk 0:00:13]} 41. Nh5 {[%clk 0:00:49]}  Ne8 {[%clk 0:00:12]} 42. Nf4 {[%clk 0:00:46]}  Nf8 {[%clk 0:00:10]} 43. Kd2 {[%clk 0:00:44]}  Kg7 {[%clk 0:00:10]} 44. Ke2 {[%clk 0:00:44]}  Kh6 {[%clk 0:00:11]} 45. Nh3 {[%clk 0:00:37]}  Nh7 {[%clk 0:00:08]} 46. Kf2 {[%clk 0:00:36]}  Ng5 {[%clk 0:00:09]} 47. Bf1 {[%clk 0:00:34]}  Nxh3+ {[%clk 0:00:08]} 48. Bxh3 {[%clk 0:00:34]}  Kg5 {[%clk 0:00:09]} 49. Ke2 {[%clk 0:00:26]}  Nc7 {[%clk 0:00:09]} 50. Kf2 {[%clk 0:00:18]}  Na6 {[%clk 0:00:10]} 51. Ke2 {[%clk 0:00:16]}  Nxb4 {[%clk 0:00:10]} 52. axb4 {[%clk 0:00:16]}  a3 {[%clk 0:00:10]} 53. Kd2 {[%clk 0:00:16]}  a2 {[%clk 0:00:10]} 54. Kc2 {[%clk 0:00:17]}  a1=Q {[%clk 0:00:10]} 0-1


[Site "https://www.chess.com"]

[Event "Titled Tuesday Blitz January 17 Early 2023"]
[White "MitzyCaballero"]
[Black "Chan, Kim Yew"]
[BlackFideId "5717981"]
[WhiteElo "2235"]
[BlackElo "2340"]
[Result "1-0"]
[Round "08"]
[TimeControl "180+2"]
[Date "2023.01.17"]
[WhiteClock "0:00:23"]
[BlackClock "0:00:02"]

1. d4 {[%clk 0:03:00]}  Nf6 {[%clk 0:02:52]} 2. Nf3 {[%clk 0:02:59]}  d5 {[%clk 0:02:51]} 3. c4 {[%clk 0:02:58]}  c6 {[%clk 0:02:50]} 4. e3 {[%clk 0:02:57]}  g6 {[%clk 0:02:47]} 5. Nc3 {[%clk 0:02:53]}  Bg7 {[%clk 0:02:47]} 6. Bd3 {[%clk 0:02:38]}  O-O {[%clk 0:02:42]} 7. O-O {[%clk 0:02:38]}  Bg4 {[%clk 0:02:34]} 8. h3 {[%clk 0:02:36]}  Bxf3 {[%clk 0:02:34]} 9. Qxf3 {[%clk 0:02:36]}  e6 {[%clk 0:02:34]} 10. Qd1 {[%clk 0:02:33]}  Nbd7 {[%clk 0:02:34]} 11. b3 {[%clk 0:02:27]}  Qe7 {[%clk 0:02:28]} 12. a4 {[%clk 0:02:24]}  Rfd8 {[%clk 0:02:28]} 13. Ba3 {[%clk 0:02:23]}  Qe8 {[%clk 0:02:28]} 14. f4 {[%clk 0:02:16]}  c5 {[%clk 0:02:20]} 15. Nb5 {[%clk 0:02:03]}  Qe7 {[%clk 0:01:39]} 16. Rc1 {[%clk 0:01:25]}  a6 {[%clk 0:01:30]} 17. Nc3 {[%clk 0:01:24]}  Rac8 {[%clk 0:01:29]} 18. Qf3 {[%clk 0:01:19]}  b6 {[%clk 0:01:07]} 19. cxd5 {[%clk 0:01:14]}  Nxd5 {[%clk 0:00:57]} 20. Bxa6 {[%clk 0:01:12]}  Nxe3 {[%clk 0:00:40]} 21. Qxe3 {[%clk 0:01:04]}  Ra8 {[%clk 0:00:14]} 22. Bb5 {[%clk 0:00:56]}  Qd6 {[%clk 0:00:06]} 23. Ne2 {[%clk 0:00:40]}  Nf6 {[%clk 0:00:06]} 24. dxc5 {[%clk 0:00:38]}  bxc5 {[%clk 0:00:06]} 25. Bxc5 {[%clk 0:00:37]}  Qd5 {[%clk 0:00:04]} 26. Nc3 {[%clk 0:00:33]}  Qf5 {[%clk 0:00:03]} 27. Rfd1 {[%clk 0:00:28]}  Rdc8 {[%clk 0:00:03]} 28. b4 {[%clk 0:00:26]}  h5 {[%clk 0:00:02]} 29. Bd3 {[%clk 0:00:23]} 1-0


[Site "https://www.chess.com"]

[Event "Titled Tuesday Blitz January 17 Early 2023"]
[White "Mitrovic, Darko R"]
[Black "Martinez, Shawn"]
[WhiteFideId "927023"]
[BlackFideId "2039770"]
[WhiteElo "2220"]
[BlackElo "1881"]
[Result "0-1"]
[Round "08"]
[TimeControl "180+2"]
[Date "2023.01.17"]
[WhiteClock "0:00:02"]
[BlackClock "0:00:20"]

1. d4 {[%clk 0:02:53]}  g6 {[%clk 0:02:50]} 2. Nf3 {[%clk 0:02:51]}  Bg7 {[%clk 0:02:51]} 3. g3 {[%clk 0:02:51]}  d6 {[%clk 0:02:51]} 4. Bg2 {[%clk 0:02:52]}  a6 {[%clk 0:02:52]} 5. O-O {[%clk 0:02:52]}  Nf6 {[%clk 0:02:52]} 6. c4 {[%clk 0:02:52]}  O-O {[%clk 0:02:52]} 7. Nc3 {[%clk 0:02:53]}  h6 {[%clk 0:02:52]} 8. e4 {[%clk 0:02:53]}  c5 {[%clk 0:02:50]} 9. dxc5 {[%clk 0:02:36]}  dxc5 {[%clk 0:02:25]} 10. Qxd8 {[%clk 0:02:34]}  Rxd8 {[%clk 0:02:26]} 11. Nd5 {[%clk 0:02:06]}  Nxd5 {[%clk 0:02:20]} 12. exd5 {[%clk 0:02:00]}  b5 {[%clk 0:02:11]} 13. Be3 {[%clk 0:01:50]}  bxc4 {[%clk 0:01:52]} 14. Bxc5 {[%clk 0:01:40]}  Rxd5 {[%clk 0:01:52]} 15. Bxe7 {[%clk 0:01:32]}  Ra7 {[%clk 0:01:51]} 16. Ba3 {[%clk 0:01:28]}  Rd3 {[%clk 0:01:40]} 17. Rae1 {[%clk 0:01:13]}  Bd7 {[%clk 0:01:31]} 18. Ne5 {[%clk 0:01:09]}  Bxe5 {[%clk 0:01:24]} 19. Rxe5 {[%clk 0:01:09]}  Be6 {[%clk 0:01:12]} 20. Be4 {[%clk 0:00:44]}  Nd7 {[%clk 0:01:09]} 21. Rxe6 {[%clk 0:00:34]}  fxe6 {[%clk 0:01:05]} 22. Bxd3 {[%clk 0:00:33]}  cxd3 {[%clk 0:01:06]} 23. Rd1 {[%clk 0:00:30]}  Ne5 {[%clk 0:00:59]} 24. f4 {[%clk 0:00:30]}  Ng4 {[%clk 0:00:54]} 25. Rxd3 {[%clk 0:00:28]}  Rc7 {[%clk 0:00:54]} 26. Rd6 {[%clk 0:00:12]}  Kf7 {[%clk 0:00:46]} 27. Rxa6 {[%clk 0:00:11]}  Rc2 {[%clk 0:00:46]} 28. h3 {[%clk 0:00:10]}  Nh2 {[%clk 0:00:43]} 29. g4 {[%clk 0:00:09]}  Nf3+ {[%clk 0:00:42]} 30. Kf1 {[%clk 0:00:10]}  e5 {[%clk 0:00:37]} 31. fxe5 {[%clk 0:00:08]}  Nxe5 {[%clk 0:00:36]} 32. Ke1 {[%clk 0:00:07]}  h5 {[%clk 0:00:27]} 33. gxh5 {[%clk 0:00:06]}  gxh5 {[%clk 0:00:26]} 34. Ra5 {[%clk 0:00:06]}  Ke6 {[%clk 0:00:25]} 35. Ra6+ {[%clk 0:00:04]}  Kf5 {[%clk 0:00:25]} 36. Ra5 {[%clk 0:00:04]}  Ke4 {[%clk 0:00:25]} 37. Kd1 {[%clk 0:00:03]}  Rg2 {[%clk 0:00:22]} 38. Bd6 {[%clk 0:00:02]}  Nc4 {[%clk 0:00:20]} 0-1


[Site "https://www.chess.com"]

[Event "Titled Tuesday Blitz January 17 Early 2023"]
[White "Kornyukov, Alexey"]
[Black "Adithya A Chullikkad"]
[WhiteFideId "4150457"]
[BlackFideId "45078734"]
[WhiteElo "2452"]
[BlackElo "2259"]
[Result "1/2-1/2"]
[Round "08"]
[TimeControl "180+2"]
[Date "2023.01.17"]
[WhiteClock "0:00:11"]
[BlackClock "0:00:04"]

1. e4 {[%clk 0:03:00]}  e5 {[%clk 0:02:59]} 2. Nf3 {[%clk 0:02:59]}  Nc6 {[%clk 0:02:57]} 3. d4 {[%clk 0:02:56]}  exd4 {[%clk 0:02:56]} 4. Nxd4 {[%clk 0:02:55]}  Nf6 {[%clk 0:02:56]} 5. Nxc6 {[%clk 0:02:54]}  bxc6 {[%clk 0:02:54]} 6. e5 {[%clk 0:02:54]}  Qe7 {[%clk 0:02:55]} 7. Qe2 {[%clk 0:02:54]}  Nd5 {[%clk 0:02:55]} 8. c4 {[%clk 0:02:53]}  Ba6 {[%clk 0:02:55]} 9. b3 {[%clk 0:02:53]}  g6 {[%clk 0:02:55]} 10. f4 {[%clk 0:02:52]}  d6 {[%clk 0:02:47]} 11. exd6 {[%clk 0:02:29]}  cxd6 {[%clk 0:02:44]} 12. Qxe7+ {[%clk 0:02:24]}  Nxe7 {[%clk 0:02:42]} 13. Bb2 {[%clk 0:02:24]}  Rg8 {[%clk 0:02:39]} 14. Nd2 {[%clk 0:02:19]}  f5 {[%clk 0:02:37]} 15. O-O-O {[%clk 0:02:04]}  Kd7 {[%clk 0:02:35]} 16. Nf3 {[%clk 0:01:49]}  c5 {[%clk 0:02:21]} 17. Ne5+ {[%clk 0:01:37]}  Kc7 {[%clk 0:02:19]} 18. Nf7 {[%clk 0:01:32]}  Nc6 {[%clk 0:02:17]} 19. Be2 {[%clk 0:01:29]}  Re8 {[%clk 0:02:13]} 20. Bf3 {[%clk 0:01:28]}  Bb7 {[%clk 0:02:11]} 21. Ng5 {[%clk 0:01:24]}  Bh6 {[%clk 0:01:40]} 22. Bd5 {[%clk 0:01:18]}  Bxg5 {[%clk 0:01:09]} 23. fxg5 {[%clk 0:01:16]}  Rgf8 {[%clk 0:00:32]} 24. Bg7 {[%clk 0:01:13]}  Nd4 {[%clk 0:00:30]} 25. Bxf8 {[%clk 0:01:09]}  Rxf8 {[%clk 0:00:27]} 26. Bxb7 {[%clk 0:01:09]}  Kxb7 {[%clk 0:00:26]} 27. Rhe1 {[%clk 0:01:09]}  Rf7 {[%clk 0:00:22]} 28. Re8 {[%clk 0:01:07]}  Kc6 {[%clk 0:00:17]} 29. Rde1 {[%clk 0:01:06]}  f4 {[%clk 0:00:16]} 30. R1e7 {[%clk 0:01:03]}  Rf5 {[%clk 0:00:13]} 31. Rc8+ {[%clk 0:01:02]}  Kb6 {[%clk 0:00:12]} 32. Rb8+ {[%clk 0:01:01]}  Ka6 {[%clk 0:00:10]} 33. h4 {[%clk 0:00:58]}  Nc6 {[%clk 0:00:09]} 34. Ree8 {[%clk 0:00:52]}  Nxb8 {[%clk 0:00:09]} 35. Rxb8 {[%clk 0:00:52]}  f3 {[%clk 0:00:09]} 36. gxf3 {[%clk 0:00:51]}  Rxf3 {[%clk 0:00:09]} 37. Rd8 {[%clk 0:00:51]}  Rd3 {[%clk 0:00:09]} 38. Kc2 {[%clk 0:00:50]}  Rd4 {[%clk 0:00:09]} 39. Kc3 {[%clk 0:00:44]}  Kb6 {[%clk 0:00:08]} 40. b4 {[%clk 0:00:42]}  Rxh4 {[%clk 0:00:08]} 41. Rxd6+ {[%clk 0:00:40]}  Kc7 {[%clk 0:00:07]} 42. bxc5 {[%clk 0:00:39]}  Rh3+ {[%clk 0:00:07]} 43. Kb4 {[%clk 0:00:38]}  Rh2 {[%clk 0:00:06]} 44. a4 {[%clk 0:00:36]}  Rg2 {[%clk 0:00:06]} 45. Rd5 {[%clk 0:00:36]}  Rb2+ {[%clk 0:00:04]} 46. Ka3 {[%clk 0:00:34]}  Rc2 {[%clk 0:00:04]} 47. Kb3 {[%clk 0:00:33]}  Rg2 {[%clk 0:00:05]} 48. Re5 {[%clk 0:00:33]}  Rg3+ {[%clk 0:00:05]} 49. Kb4 {[%clk 0:00:33]}  Rg2 {[%clk 0:00:06]} 50. Re7+ {[%clk 0:00:31]}  Kc6 {[%clk 0:00:05]} 51. Rxa7 {[%clk 0:00:27]}  Rxg5 {[%clk 0:00:05]} 52. Rxh7 {[%clk 0:00:26]}  Rg2 {[%clk 0:00:05]} 53. Rh8 {[%clk 0:00:20]}  Rb2+ {[%clk 0:00:04]} 54. Kc3 {[%clk 0:00:20]}  Rg2 {[%clk 0:00:04]} 55. a5 {[%clk 0:00:20]}  Kxc5 {[%clk 0:00:04]} 56. Rc8+ {[%clk 0:00:19]}  Kd6 {[%clk 0:00:04]} 57. a6 {[%clk 0:00:20]}  Ra2 {[%clk 0:00:04]} 58. Rd8+ {[%clk 0:00:20]}  Kc7 {[%clk 0:00:04]} 59. Rg8 {[%clk 0:00:16]}  Rxa6 {[%clk 0:00:03]} 60. Rg7+ {[%clk 0:00:16]}  Kb8 {[%clk 0:00:03]} 61. Kb4 {[%clk 0:00:15]}  Rb6+ {[%clk 0:00:02]} 62. Kc5 {[%clk 0:00:15]}  Rf6 {[%clk 0:00:02]} 63. Kb5 {[%clk 0:00:15]}  Rf5+ {[%clk 0:00:03]} 64. c5 {[%clk 0:00:15]}  Rf6 {[%clk 0:00:03]} 65. c6 {[%clk 0:00:15]}  Rf2 {[%clk 0:00:03]} 66. Rg8+ {[%clk 0:00:14]}  Kc7 {[%clk 0:00:02]} 67. Rg7+ {[%clk 0:00:12]}  Kb8 {[%clk 0:00:02]} 68. Rxg6 {[%clk 0:00:13]}  Rb2+ {[%clk 0:00:02]} 69. Ka5 {[%clk 0:00:13]}  Ra2+ {[%clk 0:00:02]} 70. Kb4 {[%clk 0:00:13]}  Rb2+ {[%clk 0:00:02]} 71. Kc3 {[%clk 0:00:14]}  Rb6 {[%clk 0:00:02]} 72. Kc4 {[%clk 0:00:14]}  Rb1 {[%clk 0:00:03]} 73. Kd5 {[%clk 0:00:13]}  Rd1+ {[%clk 0:00:03]} 74. Kc5 {[%clk 0:00:14]}  Rc1+ {[%clk 0:00:03]} 75. Kd6 {[%clk 0:00:14]}  Rd1+ {[%clk 0:00:03]} 76. Ke7 {[%clk 0:00:14]}  Kc8 {[%clk 0:00:03]} 77. Ke6 {[%clk 0:00:12]}  Rc1 {[%clk 0:00:03]} 78. Kd5 {[%clk 0:00:11]}  Rd1+ {[%clk 0:00:03]} 79. Kc5 {[%clk 0:00:12]}  Rc1+ {[%clk 0:00:03]} 80. Kd6 {[%clk 0:00:12]}  Rd1+ {[%clk 0:00:04]} 81. Kc5 {[%clk 0:00:12]}  Rc1+ {[%clk 0:00:04]} 82. Kb4 {[%clk 0:00:12]}  Rb1+ {[%clk 0:00:04]} 83. Kc4 {[%clk 0:00:12]}  Rc1+ {[%clk 0:00:05]} 84. Kd4 {[%clk 0:00:12]}  Rd1+ {[%clk 0:00:05]} 85. Kc3 {[%clk 0:00:11]}  Rc1+ {[%clk 0:00:05]} 86. Kd4 {[%clk 0:00:11]}  Rd1+ {[%clk 0:00:06]} 87. Kc4 {[%clk 0:00:11]}  Rc1+ {[%clk 0:00:06]} 88. Kb4 {[%clk 0:00:11]}  Rb1+ {[%clk 0:00:06]} 89. Ka3 {[%clk 0:00:11]}  Ra1+ {[%clk 0:00:06]} 90. Kb2 {[%clk 0:00:11]}  Ra5 {[%clk 0:00:06]} 91. Kb3 {[%clk 0:00:11]}  Ra1 {[%clk 0:00:06]} 92. Kc2 {[%clk 0:00:11]}  Ra2+ {[%clk 0:00:06]} 93. Kb3 {[%clk 0:00:11]}  Ra1 {[%clk 0:00:07]} 94. Rg7 {[%clk 0:00:11]}  Rc1 {[%clk 0:00:05]} 95. Rg6 {[%clk 0:00:10]}  Kc7 {[%clk 0:00:06]} 96. Kb4 {[%clk 0:00:10]}  Rxc6 {[%clk 0:00:05]} 97. Rg7+ {[%clk 0:00:11]}  Kb6 {[%clk 0:00:04]} 1/2-1/2


[Site "https://www.chess.com"]

[Event "Titled Tuesday Blitz January 17 Early 2023"]
[White "Thiel, Thomas"]
[Black "Necula, Iulian"]
[WhiteFideId "4615964"]
[BlackFideId "1232380"]
[WhiteElo "2234"]
[BlackElo "1851"]
[Result "1-0"]
[Round "08"]
[TimeControl "180+2"]
[Date "2023.01.17"]
[WhiteClock "0:02:05"]
[BlackClock "0:00:16"]

1. e4 {[%clk 0:03:00]}  c5 {[%clk 0:02:59]} 2. Nc3 {[%clk 0:02:57]}  d6 {[%clk 0:02:58]} 3. f4 {[%clk 0:02:56]}  g6 {[%clk 0:02:58]} 4. Nf3 {[%clk 0:02:56]}  Bg7 {[%clk 0:02:59]} 5. Bc4 {[%clk 0:02:56]}  e6 {[%clk 0:02:59]} 6. O-O {[%clk 0:02:55]}  Ne7 {[%clk 0:02:59]} 7. d3 {[%clk 0:02:54]}  Nbc6 {[%clk 0:02:59]} 8. f5 {[%clk 0:02:54]}  gxf5 {[%clk 0:02:53]} 9. Qe1 {[%clk 0:02:51]}  fxe4 {[%clk 0:02:43]} 10. dxe4 {[%clk 0:02:52]}  Ne5 {[%clk 0:02:32]} 11. Nxe5 {[%clk 0:02:45]}  Bxe5 {[%clk 0:02:31]} 12. Bg5 {[%clk 0:02:32]}  Rg8 {[%clk 0:02:25]} 13. Qh4 {[%clk 0:02:31]}  Rxg5 {[%clk 0:00:58]} 14. Qxg5 {[%clk 0:02:29]}  Ng6 {[%clk 0:00:59]} 15. Qxd8+ {[%clk 0:02:28]}  Kxd8 {[%clk 0:00:59]} 16. Rxf7 {[%clk 0:02:26]}  Bd7 {[%clk 0:00:59]} 17. Bb5 {[%clk 0:02:15]}  Bxb5 {[%clk 0:00:48]} 18. Nxb5 {[%clk 0:02:16]}  a6 {[%clk 0:00:44]} 19. Nc7 {[%clk 0:02:15]}  Rc8 {[%clk 0:00:36]} 20. Nxe6+ {[%clk 0:02:15]}  Ke8 {[%clk 0:00:37]} 21. Raf1 {[%clk 0:02:11]}  Bxb2 {[%clk 0:00:27]} 22. Rxb7 {[%clk 0:02:09]}  Bd4+ {[%clk 0:00:18]} 23. Kh1 {[%clk 0:02:07]}  c4 {[%clk 0:00:16]} 24. Nxd4 {[%clk 0:02:05]} 1-0


[Site "https://www.chess.com"]

[Event "Titled Tuesday Blitz January 17 Early 2023"]
[White "Clawitter, Craig"]
[Black "Stead, Kerry"]
[WhiteFideId "2023105"]
[BlackFideId "3202577"]
[WhiteElo "2050"]
[BlackElo "1908"]
[Result "1-0"]
[Round "08"]
[TimeControl "180+2"]
[Date "2023.01.17"]
[WhiteClock "0:01:14"]
[BlackClock "0:01:58"]

1. e4 {[%clk 0:03:00]}  c6 {[%clk 0:02:58]} 2. d4 {[%clk 0:02:59]}  d5 {[%clk 0:02:57]} 3. e5 {[%clk 0:03:00]}  Bf5 {[%clk 0:02:56]} 4. Nf3 {[%clk 0:03:00]}  e6 {[%clk 0:02:54]} 5. Be2 {[%clk 0:03:00]}  c5 {[%clk 0:02:53]} 6. Be3 {[%clk 0:03:00]}  Nc6 {[%clk 0:02:51]} 7. O-O {[%clk 0:02:58]}  cxd4 {[%clk 0:02:50]} 8. Nxd4 {[%clk 0:02:58]}  Nxd4 {[%clk 0:02:49]} 9. Qxd4 {[%clk 0:02:50]}  a6 {[%clk 0:02:49]} 10. c4 {[%clk 0:02:41]}  dxc4 {[%clk 0:02:48]} 11. Qxc4 {[%clk 0:02:36]}  Rc8 {[%clk 0:02:46]} 12. Qb3 {[%clk 0:02:30]}  b5 {[%clk 0:02:45]} 13. Nc3 {[%clk 0:02:24]}  Bc5 {[%clk 0:02:39]} 14. Nxb5 {[%clk 0:02:01]}  Bxe3 {[%clk 0:02:14]} 15. Nd6+ {[%clk 0:01:57]}  Kf8 {[%clk 0:02:14]} 16. Nxc8 {[%clk 0:01:37]}  Bxf2+ {[%clk 0:02:11]} 17. Rxf2 {[%clk 0:01:33]}  Qxc8 {[%clk 0:02:11]} 18. Qc3 {[%clk 0:01:23]}  Qb7 {[%clk 0:01:59]} 19. Rd1 {[%clk 0:01:15]}  Ne7 {[%clk 0:01:58]} 20. Rd8# {[%clk 0:01:14]} 1-0


[Site "https://www.chess.com"]

[Event "Titled Tuesday Blitz January 17 Early 2023"]
[White "Kamsky, Gata"]
[Black "Sarana, Alexey"]
[WhiteFideId "2000024"]
[BlackFideId "24133795"]
[WhiteElo "2665"]
[BlackElo "2685"]
[Result "1/2-1/2"]
[Round "09"]
[TimeControl "180+2"]
[Date "2023.01.17"]
[WhiteClock "0:01:14"]
[BlackClock "0:01:25"]

1. e4 {[%clk 0:03:00]}  e5 {[%clk 0:02:56]} 2. Nf3 {[%clk 0:03:00]}  Nc6 {[%clk 0:02:57]} 3. Bb5 {[%clk 0:03:00]}  a6 {[%clk 0:02:56]} 4. Bxc6 {[%clk 0:02:57]}  dxc6 {[%clk 0:02:56]} 5. O-O {[%clk 0:02:57]}  Qf6 {[%clk 0:02:55]} 6. d4 {[%clk 0:02:57]}  exd4 {[%clk 0:02:56]} 7. Qxd4 {[%clk 0:02:56]}  Qxd4 {[%clk 0:02:55]} 8. Nxd4 {[%clk 0:02:56]}  Bd7 {[%clk 0:02:55]} 9. Nc3 {[%clk 0:02:56]}  O-O-O {[%clk 0:02:55]} 10. Be3 {[%clk 0:02:56]}  c5 {[%clk 0:02:54]} 11. Nde2 {[%clk 0:02:55]}  b6 {[%clk 0:02:53]} 12. Rfd1 {[%clk 0:02:55]}  Re8 {[%clk 0:02:52]} 13. a4 {[%clk 0:02:43]}  a5 {[%clk 0:02:49]} 14. Nf4 {[%clk 0:02:40]}  Ne7 {[%clk 0:02:49]} 15. f3 {[%clk 0:02:36]}  Bc6 {[%clk 0:02:43]} 16. Bf2 {[%clk 0:02:11]}  Ng6 {[%clk 0:02:20]} 17. Nfd5 {[%clk 0:02:10]}  Kb7 {[%clk 0:02:18]} 18. Nb5 {[%clk 0:02:08]}  Bxb5 {[%clk 0:02:17]} 19. axb5 {[%clk 0:02:08]}  Bd6 {[%clk 0:02:16]} 20. b3 {[%clk 0:02:05]}  h5 {[%clk 0:02:15]} 21. Bg3 {[%clk 0:01:57]}  Bxg3 {[%clk 0:02:03]} 22. hxg3 {[%clk 0:01:57]}  h4 {[%clk 0:01:57]} 23. gxh4 {[%clk 0:01:57]}  Rxh4 {[%clk 0:01:57]} 24. Ne3 {[%clk 0:01:57]}  Ne5 {[%clk 0:01:55]} 25. Kf2 {[%clk 0:01:53]}  Rhh8 {[%clk 0:01:48]} 26. Rd5 {[%clk 0:01:43]}  f6 {[%clk 0:01:47]} 27. Kg3 {[%clk 0:01:36]}  Kc8 {[%clk 0:01:43]} 28. Rad1 {[%clk 0:01:33]}  Rh7 {[%clk 0:01:37]} 29. Ng4 {[%clk 0:01:29]}  Nxg4 {[%clk 0:01:30]} 30. Kxg4 {[%clk 0:01:29]}  g6 {[%clk 0:01:31]} 31. c4 {[%clk 0:01:24]}  Reh8 {[%clk 0:01:27]} 32. Kg3 {[%clk 0:01:23]}  Re8 {[%clk 0:01:26]} 33. R5d2 {[%clk 0:01:17]}  Reh8 {[%clk 0:01:24]} 34. Rd5 {[%clk 0:01:16]}  Re8 {[%clk 0:01:25]} 35. R5d2 {[%clk 0:01:15]}  Rf8 {[%clk 0:01:25]} 36. Rd5 {[%clk 0:01:14]} 1/2-1/2


[Site "https://www.chess.com"]

[Event "Titled Tuesday Blitz January 17 Early 2023"]
[White "Kovalenko, Igor"]
[Black "Dardha, Daniel"]
[WhiteFideId "14117908"]
[BlackFideId "240990"]
[WhiteElo "2674"]
[BlackElo "2631"]
[Result "0-1"]
[Round "09"]
[TimeControl "180+2"]
[Date "2023.01.17"]
[WhiteClock "0:00:01"]
[BlackClock "0:00:04"]

1. d4 {[%clk 0:03:00]}  Nf6 {[%clk 0:02:59]} 2. Nf3 {[%clk 0:03:00]}  e6 {[%clk 0:02:58]} 3. e3 {[%clk 0:03:00]}  c5 {[%clk 0:02:57]} 4. Bd3 {[%clk 0:03:01]}  b6 {[%clk 0:02:57]} 5. O-O {[%clk 0:03:01]}  Bb7 {[%clk 0:02:57]} 6. c4 {[%clk 0:03:02]}  cxd4 {[%clk 0:02:56]} 7. exd4 {[%clk 0:03:03]}  Be7 {[%clk 0:02:55]} 8. Nc3 {[%clk 0:03:03]}  O-O {[%clk 0:02:54]} 9. d5 {[%clk 0:03:02]}  Na6 {[%clk 0:02:50]} 10. Re1 {[%clk 0:02:52]}  Re8 {[%clk 0:02:48]} 11. Bg5 {[%clk 0:02:38]}  h6 {[%clk 0:02:47]} 12. Bf4 {[%clk 0:02:38]}  Bb4 {[%clk 0:02:46]} 13. Qd2 {[%clk 0:02:23]}  Nc5 {[%clk 0:02:17]} 14. Bc2 {[%clk 0:02:21]}  Bxc3 {[%clk 0:02:14]} 15. bxc3 {[%clk 0:01:46]}  exd5 {[%clk 0:02:03]} 16. cxd5 {[%clk 0:01:37]}  Bxd5 {[%clk 0:01:52]} 17. Bxh6 {[%clk 0:01:29]}  Bxf3 {[%clk 0:01:27]} 18. gxf3 {[%clk 0:00:36]}  Ne6 {[%clk 0:01:09]} 19. Kh1 {[%clk 0:00:35]}  Kf8 {[%clk 0:00:52]} 20. Be3 {[%clk 0:00:31]}  Qc7 {[%clk 0:00:49]} 21. Rad1 {[%clk 0:00:26]}  Qc6 {[%clk 0:00:46]} 22. Qd6+ {[%clk 0:00:26]}  Qxd6 {[%clk 0:00:39]} 23. Rxd6 {[%clk 0:00:27]}  Rac8 {[%clk 0:00:39]} 24. Bd2 {[%clk 0:00:20]}  Nc5 {[%clk 0:00:30]} 25. Rxe8+ {[%clk 0:00:20]}  Rxe8 {[%clk 0:00:31]} 26. Be3 {[%clk 0:00:20]}  Ne6 {[%clk 0:00:29]} 27. Ba4 {[%clk 0:00:17]}  Rc8 {[%clk 0:00:27]} 28. Rd3 {[%clk 0:00:15]}  Nc5 {[%clk 0:00:23]} 29. Bxc5+ {[%clk 0:00:15]}  Rxc5 {[%clk 0:00:23]} 30. Bxd7 {[%clk 0:00:14]}  Nd5 {[%clk 0:00:24]} 31. c4 {[%clk 0:00:11]}  Nf4 {[%clk 0:00:20]} 32. Rd4 {[%clk 0:00:10]}  g5 {[%clk 0:00:18]} 33. h4 {[%clk 0:00:10]}  f6 {[%clk 0:00:11]} 34. hxg5 {[%clk 0:00:10]}  fxg5 {[%clk 0:00:12]} 35. Kh2 {[%clk 0:00:09]}  Rc7 {[%clk 0:00:11]} 36. Bf5 {[%clk 0:00:06]}  Rf7 {[%clk 0:00:11]} 37. Be4 {[%clk 0:00:06]}  Rf6 {[%clk 0:00:09]} 38. Rd8+ {[%clk 0:00:06]}  Ke7 {[%clk 0:00:09]} 39. Rg8 {[%clk 0:00:06]}  Rh6+ {[%clk 0:00:06]} 40. Kg3 {[%clk 0:00:06]}  Kf6 {[%clk 0:00:07]} 41. Rf8+ {[%clk 0:00:05]}  Kg7 {[%clk 0:00:06]} 42. Rf5 {[%clk 0:00:05]}  Ne6 {[%clk 0:00:04]} 43. Re5 {[%clk 0:00:05]}  Kf6 {[%clk 0:00:04]} 44. Rf5+ {[%clk 0:00:05]}  Ke7 {[%clk 0:00:04]} 45. Bd5 {[%clk 0:00:05]}  Nf4 {[%clk 0:00:02]} 46. Rxg5 {[%clk 0:00:05]}  Ne2+ {[%clk 0:00:03]} 47. Kg4 {[%clk 0:00:05]}  Rh2 {[%clk 0:00:03]} 48. f4 {[%clk 0:00:04]}  Rxf2 {[%clk 0:00:03]} 49. Re5+ {[%clk 0:00:04]}  Kf6 {[%clk 0:00:02]} 50. Re6+ {[%clk 0:00:04]}  Kg7 {[%clk 0:00:03]} 51. f5 {[%clk 0:00:05]}  Nd4 {[%clk 0:00:02]} 52. Re7+ {[%clk 0:00:03]}  Kf6 {[%clk 0:00:03]} 53. Rf7+ {[%clk 0:00:03]}  Ke5 {[%clk 0:00:04]} 54. Re7+ {[%clk 0:00:02]}  Kf6 {[%clk 0:00:04]} 55. Rf7+ {[%clk 0:00:02]}  Ke5 {[%clk 0:00:05]} 56. Rxa7 {[%clk 0:00:01]}  Rf4+ {[%clk 0:00:04]} 57. Kg5 {[%clk 0:00:01]}  Rxf5+ {[%clk 0:00:05]} 58. Kg6 {[%clk 0:00:01]}  Rf6+ {[%clk 0:00:05]} 59. Kg7 {[%clk 0:00:01]}  Nf5+ {[%clk 0:00:06]} 60. Kg8 {[%clk 0:00:01]}  Rd6 {[%clk 0:00:04]} 0-1


[Site "https://www.chess.com"]